bitfinex/quotes_SOLUSD_20220207
["timestamp","ask_amount","ask_price","bid_price","bid_amount"]
[1644221647325,22.796,117.22,117.12,24.4964]
[1644221647524,24.9016109,117.22,117.12,24.4964]
[1644221647725,12.8055,117.21,117.12,24.4964]
[1644221648127,19.0555,117.21,117.12,24.7464]
[1644221648328,19.0555,117.21,117.13,35.52633576]
[1644221650730,23.3225,117.21,117.12,24.4964]
[1644221650931,25.4281109,117.21,117.12,24.4964]
[1644221651130,37.7081109,117.21,117.12,24.4964]
[1644221652248,37.7081109,117.21,117.11,65.10737465]
[1644221654255,37.7081109,117.21,117.12,24.2522]
[1644221654958,35.6025,117.21,117.12,24.2522]
[1644221656556,48.7185,117.21,117.12,24.2522]
[1644221657157,23.0725,117.21,117.12,24.2522]
[1644221657455,23.0725,117.21,117.12,24.5022]
[1644221657456,10.267,117.21,117.12,24.5022]
[1644221657658,6.0,117.21,117.12,24.2522]
[1644221658056,12.3726109,117.21,117.12,24.2522]
[1644221658258,20.3856109,117.21,117.12,24.2522]
[1644221658457,33.1913109,117.21,117.06,16.547]
[1644221658657,4.268,117.2,117.08,23.6233]
[1644221658859,12.28,117.19,117.08,23.6233]
[1644221659057,14.3856109,117.19,117.08,23.6233]
[1644221659257,20.6356109,117.19,117.08,23.6233]
[1644221659458,41.80502337,117.18,117.09,48.13081503]
[1644221659660,47.80502337,117.18,117.09,48.13081503]
[1644221659858,48.05502337,117.18,117.09,48.13081503]
[1644221660061,12.8118,117.17,117.09,48.13081503]
[1644221660264,13.0618,117.17,117.09,48.13081503]
[1644221660462,19.0618,117.17,117.09,48.13081503]
[1644221668671,19.0618,117.17,117.08,23.6233]
[1644221669673,19.0618,117.17,117.09,41.25151159]
[1644221671475,18.61279231,117.17,117.09,41.25151159]
[1644221674681,18.61279231,117.17,117.08,23.6233]
[1644221675782,18.61279231,117.17,117.08,63.26261983]
[1644221677183,18.61279231,117.17,117.08,23.6233]
[1644221677383,12.28,117.16,117.08,23.6233]
[1644221677602,12.8144,117.14,117.08,23.6233]
[1644221677804,13.0644,117.14,117.08,23.6233]
[1644221678003,19.0644,117.14,117.08,23.6233]
[1644221678203,25.82311287,117.14,117.08,23.6233]
[1644221680411,19.0644,117.14,117.08,23.6233]
[1644221683011,6.25,117.14,117.08,23.6233]
[1644221683211,0.25,117.14,117.08,23.6233]
[1644221683413,6.25,117.14,117.08,23.6233]
[1644221684016,0.25,117.14,117.08,23.6233]
[1644221684213,6.0,117.14,117.08,23.6233]
[1644221684614,0.25,117.14,117.08,23.6233]
[1644221685815,19.0609,117.16,117.08,23.6233]
[1644221687218,6.25,117.16,117.08,23.6233]
[1644221687618,0.25,117.16,117.08,23.6233]
[1644221687818,6.0,117.16,117.08,23.6233]
[1644221688218,7.44335818,117.16,117.08,23.6233]
[1644221688420,1.44335818,117.16,117.08,23.6233]
[1644221688619,7.44335818,117.16,117.08,23.6233]
[1644221688820,6.25,117.16,117.08,23.6233]
[1644221689828,0.25,117.16,117.08,23.6233]
[1644221690022,6.25,117.16,117.08,23.6233]
[1644221691022,14.44033472,117.16,117.08,23.6233]
[1644221691621,15.6336929,117.16,117.08,23.6233]
[1644221692024,7.44335818,117.16,117.08,23.6233]
[1644221694226,7.44335818,117.16,117.08,29.6233]
[1644221694628,7.44335818,117.16,117.08,23.6233]
[1644221694828,2.99098173,117.15,117.08,23.6233]
[1644221695230,9.24098173,117.15,117.08,23.6233]
[1644221695828,6.25,117.15,117.08,23.6233]
[1644221696227,0.25,117.15,117.08,23.6233]
[1644221696429,0.25,117.15,117.08,29.6233]
[1644221696627,7.44335818,117.16,117.08,23.6233]
[1644221696828,45.40973205,117.16,117.08,23.6233]
[1644221698028,45.40973205,117.16,117.08,29.6233]
[1644221700832,45.40973205,117.16,117.08,23.6233]
[1644221701032,58.22093205,117.16,117.08,23.6233]
[1644221701437,1.19335818,117.15,117.08,23.6233]
[1644221701632,7.19335818,117.15,117.08,23.6233]
[1644221701832,7.44335818,117.15,117.08,23.6233]
[1644221702332,20.25565818,117.15,117.08,23.6233]
[1644221702632,1.19335818,117.14,117.08,23.6233]
[1644221702832,1.44335818,117.14,117.08,23.6233]
[1644221703035,7.44335818,117.14,117.08,23.6233]
[1644221703632,7.44335818,117.14,117.06,37.85142441]
[1644221703852,7.44335818,117.14,117.05,22.9457]
[1644221704033,1.19335818,117.13,117.05,22.9457]
[1644221704234,1.44335818,117.13,117.06,24.2404]
[1644221704433,7.44335818,117.13,117.06,24.2404]
[1644221704636,1.19335818,117.12,117.0,7.22462958]
[1644221704834,1.19335818,117.11,117.01,91.3647019]
[1644221705232,0.25,117.11,117.01,91.3647019]
[1644221705433,6.25,117.11,117.01,91.3647019]
[1644221705936,12.8177,117.1,117.01,91.3647019]
[1644221706233,19.0677,117.1,117.01,91.6147019]
[1644221707034,26.03862299,117.12,117.01,93.36044436]
[1644221707235,37.68005818,117.13,117.01,93.36044436]
[1644221707436,6.0,117.12,117.01,99.36044436]
[1644221707643,42.4867,117.13,117.01,99.36044436]
[1644221707837,18.8143,117.13,117.01,99.36044436]
[1644221708036,18.8143,117.13,117.01,121.62244436]
[1644221708240,18.8143,117.13,117.01,122.83233148]
[1644221708639,18.8143,117.13,117.01,110.55233148]
[1644221708839,19.0643,117.13,117.01,122.83233148]
[1644221709741,19.0643,117.13,117.01,112.60033148]
[1644221709939,19.0643,117.13,117.01,98.57458902]
[1644221710139,19.0643,117.13,117.01,97.3647019]
[1644221710140,20.25765818,117.13,117.01,97.3647019]
[1644221710742,44.75055818,117.13,117.01,97.3647019]
[1644221711140,44.75055818,117.13,117.01,96.8647019]
[1644221711361,7.49004255,117.12,117.01,98.86044436]
[1644221711562,13.49004255,117.12,117.01,98.86044436]
[1644221711765,40.69223819,117.1,117.01,98.86044436]
[1644221712162,46.94223819,117.1,117.01,98.86044436]
[1644221712763,6.25,117.1,117.01,98.86044436]
[1644221712962,0.25,117.1,117.01,98.86044436]
[1644221713163,6.25,117.1,117.01,98.86044436]
[1644221713666,43.3071,117.13,117.01,98.86044436]
[1644221713862,83.81618395,117.13,117.01,98.86044436]
[1644221714262,83.81618395,117.13,117.01,111.14044436]
[1644221714263,43.3071,117.13,117.01,111.14044436]
[1644221715063,37.5571,117.13,117.01,111.14044436]
[1644221715264,75.11144962,117.13,117.01,111.14044436]
[1644221715863,76.3048078,117.13,117.01,111.14044436]
[1644221716065,75.11144962,117.13,117.01,111.14044436]
[1644221716264,37.5571,117.13,117.01,111.14044436]
[1644221716463,43.5571,117.13,117.01,111.14044436]
[1644221716663,18.8142,117.13,117.01,111.14044436]
[1644221717067,5.46235818,117.14,117.01,111.14044436]
[1644221717266,6.0,117.14,117.01,111.14044436]
[1644221717466,42.83445818,117.15,117.02,4.269]
[1644221717667,42.83445818,117.15,117.03,72.11324878]
[1644221717865,42.83445818,117.15,117.03,73.85899124]
[1644221718065,43.08445818,117.15,117.04,1.74574246]
[1644221718266,6.0,117.15,117.04,1.99574246]
[1644221718468,6.0,117.15,117.04,20.27574246]
[1644221718671,30.49715818,117.16,117.05,1.74574246]
[1644221718871,30.49715818,117.16,117.05,37.22134246]
[1644221719065,30.49715818,117.16,117.05,43.47134246]
[1644221719265,5.50475264,117.15,117.06,42.26030629]
[1644221719465,30.49715818,117.16,117.08,38.7920227]
[1644221719666,30.49715818,117.16,117.09,22.6111]
[1644221720267,24.49715818,117.16,117.09,22.6111]
[1644221720465,69.930208,117.16,117.09,22.6111]
[1644221720665,69.930208,117.16,117.1,35.91336929]
[1644221721066,24.74715818,117.16,117.1,35.91336929]
[1644221721468,1.44335818,117.16,117.1,35.91336929]
[1644221722069,48.92713769,117.16,117.1,35.91336929]
[1644221722972,48.92713769,117.16,117.09,22.6111]
[1644221723570,54.92713769,117.16,117.09,22.6111]
[1644221724572,67.73833769,117.16,117.05,23.497]
[1644221724773,17.74235818,117.15,117.05,46.5387]
[1644221724974,1.19335818,117.14,117.05,46.5387]
[1644221725175,1.19335818,117.14,117.05,46.7887]
[1644221725374,7.44335818,117.14,117.06,42.67667321]
[1644221725775,6.25,117.14,117.07,23.9123]
[1644221725977,19.0637,117.14,117.08,37.60434698]
[1644221727181,20.25705818,117.14,117.08,37.60434698]
[1644221727381,19.0637,117.14,117.08,37.60434698]
[1644221727982,20.64365673,117.14,117.08,37.60434698]
[1644221728284,19.0637,117.14,117.08,37.60434698]
[1644221729184,67.50357424,117.14,117.08,37.60434698]
[1644221729783,19.0637,117.14,117.08,37.60434698]
[1644221731186,29.5426335,117.14,117.08,37.60434698]
[1644221732390,29.5426335,117.14,117.07,23.9123]
[1644221732588,43.01599168,117.14,117.05,23.247]
[1644221732989,1.19335818,117.13,117.05,23.247]
[1644221733188,12.8155,117.12,117.05,23.247]
[1644221733390,51.40030274,117.12,117.06,44.37416677]
[1644221733590,57.65030274,117.12,117.06,44.37416677]
[1644221734192,57.65030274,117.12,117.05,23.247]
[1644221734589,58.84366092,117.12,117.05,23.247]
[1644221734790,58.84366092,117.12,117.03,22.9437]
[1644221734990,12.28,117.11,117.03,22.9437]
[1644221735195,23.2967335,117.1,117.03,22.9437]
[1644221735591,29.5467335,117.1,117.04,46.0883964]
[1644221736089,29.5467335,117.1,117.03,22.9437]
[1644221736491,19.0678,117.1,117.03,22.9437]
[1644221737390,27.5141,117.12,117.03,24.68944246]
[1644221737391,30.55755818,117.12,117.03,24.68944246]
[1644221737617,46.27330961,117.13,117.04,39.15284605]
[1644221737796,46.27330961,117.13,117.05,24.9332]
[1644221738391,46.27330961,117.13,117.06,36.76095107]
[1644221738591,69.35700961,117.13,117.06,36.76095107]
[1644221738792,69.35700961,117.13,117.06,37.01095107]
[1644221739195,68.41365143,117.13,117.06,36.76095107]
[1644221739395,68.41365143,117.13,117.05,24.9332]
[1644221739692,65.33800961,117.13,117.05,24.9332]
[1644221740292,77.61800961,117.13,117.05,24.9332]
[1644221740494,1.19335818,117.12,117.01,1.74574246]
[1644221740694,46.32615818,117.12,117.01,22.8195]
[1644221740895,12.8186,117.09,117.01,22.8195]
[1644221741093,18.8186,117.09,117.01,22.8195]
[1644221741295,19.0686,117.09,117.01,22.8195]
[1644221741496,3.98378481,117.08,117.01,68.86153746]
[1644221741693,10.23378481,117.08,117.01,22.8195]
[1644221741897,12.8204,117.07,116.97,1.20988712]
[1644221742094,12.8204,117.07,116.96,1.20988712]
[1644221742095,31.1004,117.07,116.96,1.20988712]
[1644221742294,56.1408109,117.07,116.96,1.20988712]
[1644221742495,56.1408109,117.07,116.94,49.73348712]
[1644221742700,87.82935143,117.06,116.95,38.68643111]
[1644221742902,100.10935143,117.06,116.95,38.68643111]
[1644221743100,106.35935143,117.06,116.95,38.68643111]
[1644221743600,106.35935143,117.06,116.97,47.12315425]
[1644221744000,12.8248,117.03,116.97,47.12315425]
[1644221744202,19.0748,117.03,116.97,47.12315425]
[1644221745004,19.0748,117.03,116.97,47.37315425]
[1644221745227,19.0748,117.03,116.96,24.2279]
[1644221745424,19.0748,117.03,116.96,24.4779]
[1644221746627,6.25,117.03,116.96,24.4779]
[1644221747127,6.0,117.03,116.97,37.58139278]
[1644221747325,6.0,117.03,116.97,37.83139278]
[1644221747526,12.8228,117.05,116.97,37.83139278]
[1644221747827,18.8228,117.05,116.97,37.83139278]
[1644221748026,18.8228,117.05,116.97,39.57713524]
[1644221748225,18.8228,117.05,116.97,37.83139278]
[1644221749027,5.12200279,117.04,116.97,37.83139278]
[1644221749630,11.12200279,117.04,116.97,37.83139278]
[1644221750429,6.0,117.04,116.97,37.83139278]
[1644221750628,18.8228,117.05,116.97,37.83139278]
[1644221750828,19.0728,117.05,116.97,37.83139278]
[1644221751430,35.52427601,117.04,116.97,37.83139278]
[1644221751630,41.52427601,117.04,116.97,37.83139278]
[1644221751829,41.77427601,117.04,116.97,37.83139278]
[1644221752430,54.59877601,117.04,116.97,37.83139278]
[1644221752629,54.59877601,117.04,116.96,24.2279]
[1644221753633,54.59877601,117.04,116.96,58.79524373]
[1644221754234,54.59877601,117.04,116.96,59.04524373]
[1644221756439,54.59877601,117.04,116.96,0.25]
[1644221756638,66.87877601,117.04,116.94,30.531]
[1644221756837,66.87877601,117.04,116.94,24.531]
[1644221757038,66.87877601,117.04,116.94,0.948]
[1644221757238,91.60027601,117.04,116.94,0.948]
[1644221757445,91.60027601,117.04,116.94,38.02490158]
[1644221757844,13.53946023,117.02,116.94,38.02490158]
[1644221758039,12.8282,117.01,116.94,38.02490158]
[1644221758240,35.52427601,117.0,116.94,0.948]
[1644221758642,41.77427601,117.0,116.94,0.948]
[1644221759243,54.60327601,117.0,116.94,0.948]
[1644221760744,54.60327601,117.0,116.94,49.6629479]
[1644221760943,54.60327601,117.0,116.94,0.055605]
[1644221761342,17.249802,116.99,116.94,0.055605]
[1644221761545,12.8314,116.98,116.94,0.055605]
[1644221761843,13.0814,116.98,116.94,0.055605]
[1644221763743,26.62086023,116.98,116.94,0.055605]
[1644221764144,13.0814,116.98,116.94,0.055605]
[1644221764747,25.1083,117.0,116.94,0.055605]
[1644221764944,12.8283,117.0,116.94,0.055605]
[1644221765148,47.27830814,117.0,116.94,0.055605]
[1644221765349,59.55830814,117.0,116.94,0.055605]
[1644221765746,65.55830814,117.0,116.94,0.055605]
[1644221766549,65.80830814,117.0,116.94,0.055605]
[1644221767048,78.63670814,117.0,116.94,0.055605]
[1644221770852,78.13670814,117.0,116.94,0.055605]
[1644221771653,78.13670814,117.0,116.94,46.18503065]
[1644221773055,78.13670814,117.0,116.94,0.055605]
[1644221775463,77.63670814,117.0,116.94,0.055605]
[1644221780277,77.13670814,117.0,116.94,0.055605]
[1644221788389,31.3584,117.0,116.94,0.055605]
[1644221788586,25.1084,117.0,116.94,0.055605]
[1644221789186,12.8284,117.0,116.94,0.055605]
[1644221789686,1.19335818,117.02,116.94,0.055605]
[1644221789986,1.19335818,117.03,116.94,25.75224746]
[1644221790191,1.19335818,117.04,116.94,25.75224746]
[1644221790389,1.19335818,117.04,116.94,24.256505]
[1644221790587,42.87197475,117.03,116.95,40.70856257]
[1644221790787,55.69747475,117.03,116.96,24.4868]
[1644221790991,74.22747475,117.03,116.96,24.4868]
[1644221791187,74.22747475,117.03,116.94,0.055605]
[1644221791188,3.29896908,117.02,116.94,0.055605]
[1644221791388,25.84696908,117.02,116.94,0.055605]
[1644221791588,29.99135818,117.02,116.94,0.055605]
[1644221791788,5.88511967,117.01,116.94,0.055605]
[1644221791988,18.71281967,117.01,116.94,0.055605]
[1644221792189,24.96281967,117.01,116.94,0.055605]
[1644221792389,26.15617785,117.01,116.94,0.055605]
[1644221793890,24.96281967,117.01,116.94,0.055605]
[1644221794089,26.15617785,117.01,116.94,0.055605]
[1644221794488,38.43617785,117.01,116.94,0.055605]
[1644221794689,38.43617785,117.01,116.94,45.61262945]
[1644221794890,38.43617785,117.01,116.94,0.055605]
[1644221795690,38.18617785,117.01,116.94,0.055605]
[1644221795891,36.99281967,117.01,116.94,40.31479474]
[1644221796394,36.99281967,117.01,116.94,40.56479474]
[1644221797392,18.28,117.01,116.94,40.56479474]
[1644221798292,46.58446015,117.0,116.94,40.56479474]
[1644221798491,46.58446015,117.0,116.94,0.055605]
[1644221799296,52.58446015,117.0,116.94,0.055605]
[1644221799494,46.58446015,117.0,116.94,0.055605]
[1644221799696,46.83446015,117.0,116.94,0.055605]
[1644221800497,0.25,117.0,116.94,0.055605]
[1644221800700,19.0776,117.01,116.94,0.055605]
[1644221802299,13.0776,117.01,116.94,0.055605]
[1644221802500,12.8276,117.01,116.94,0.055605]
[1644221803100,31.84949288,117.01,116.94,0.055605]
[1644221803300,44.12949288,117.01,116.94,0.055605]
[1644221803700,45.32285106,117.01,116.94,0.055605]
[1644221804299,44.12949288,117.01,116.94,36.0553959]
[1644221804699,44.12949288,117.01,116.94,36.3053959]
[1644221804899,44.12949288,117.01,116.94,36.0553959]
[1644221805099,44.12949288,117.01,116.94,36.3053959]
[1644221805302,44.12949288,117.01,116.94,0.055605]
[1644221805699,45.32285106,117.01,116.94,0.055605]
[1644221807900,34.79184336,116.99,116.94,0.055605]
[1644221808100,12.28,116.98,116.94,0.055605]
[1644221808301,12.53,116.98,116.94,0.055605]
[1644221808500,18.53,116.98,116.94,0.055605]
[1644221808901,12.77189288,116.97,116.94,0.055605]
[1644221809103,2.5,116.96,116.94,0.055605]
[1644221812802,12.28,116.98,116.95,3.56439993]
[1644221813004,12.28,117.0,116.95,3.56439993]
[1644221813202,18.53,117.0,116.95,3.56439993]
[1644221813604,18.53,117.0,116.95,46.01441865]
[1644221814307,18.53,117.0,116.95,3.56439993]
[1644221815106,29.32357537,117.0,116.95,3.56439993]
[1644221816107,6.25,117.0,116.95,3.56439993]
[1644221816508,12.28,117.0,116.95,3.56439993]
[1644221816708,18.28,117.0,116.95,3.56439993]
[1644221817715,8.53657601,116.99,116.95,3.56439993]
[1644221818109,14.78657601,116.99,116.94,0.055605]
[1644221818510,6.25,116.99,116.94,0.055605]
[1644221818710,0.25,116.99,116.94,0.055605]
[1644221819009,6.25,116.99,116.94,0.055605]
[1644221820315,0.25,116.99,116.94,0.055605]
[1644221820513,6.25,116.99,116.94,0.055605]
[1644221821815,0.25,116.99,116.94,0.055605]
[1644221822017,6.25,116.99,116.94,0.055605]
[1644221823217,12.28,117.0,116.94,0.055605]
[1644221823615,1.19335818,117.01,116.94,0.055605]
[1644221823814,13.47335818,117.02,116.94,0.055605]
[1644221824015,6.0,117.01,116.94,0.055605]
[1644221824216,57.33677424,117.02,116.94,0.055605]
[1644221825015,57.58677424,117.02,116.94,0.055605]
[1644221825222,70.41337424,117.02,116.94,0.055605]
[1644221825617,84.08760997,117.02,116.94,0.055605]
[1644221825819,13.01828576,117.01,116.94,0.055605]
[1644221826018,15.98032018,117.0,116.94,0.055605]
[1644221826218,16.23032018,117.0,116.94,0.055605]
[1644221826418,22.23032018,117.0,116.94,0.055605]
[1644221826618,18.53,117.0,116.94,0.055605]
[1644221826922,2.38615163,117.05,116.96,56.0]
[1644221827120,2.38142551,117.07,116.96,62.0]
[1644221827318,2.38142551,117.07,116.97,23.3696]
[1644221827518,37.19178555,117.05,116.97,23.3696]
[1644221827718,37.19178555,117.05,116.97,23.6196]
[1644221827919,13.02150337,117.04,116.97,66.80798826]
[1644221828120,13.02150337,117.04,116.97,67.05798826]
[1644221828322,13.02150337,117.04,116.97,23.3696]
[1644221828923,12.28,117.03,116.97,23.3696]
[1644221829323,38.37682856,117.02,116.97,23.3696]
[1644221829726,38.62682856,117.02,116.97,23.3696]
[1644221829926,46.73243946,117.02,116.97,23.3696]
[1644221830229,44.62682856,117.02,116.97,23.3696]
[1644221830426,38.62682856,117.02,116.97,23.3696]
[1644221831525,38.62682856,117.02,116.94,0.055605]
[1644221831726,82.04833946,117.02,116.94,0.055605]
[1644221831926,12.8297,116.99,116.94,0.055605]
[1644221832730,13.0797,116.99,116.94,0.055605]
[1644221833128,12.8297,116.99,116.94,0.055605]
[1644221833328,13.0797,116.99,116.94,0.055605]
[1644221835154,38.37682856,116.98,116.94,0.055605]
[1644221835352,51.45762856,116.98,116.94,0.055605]
[1644221835755,12.28,116.97,116.94,0.055605]
[1644221835959,2.5,116.96,116.94,0.055605]
[1644221836255,2.75,116.96,116.94,0.055605]
[1644221836755,24.77000768,116.96,116.94,0.055605]
[1644221837854,15.3331,116.96,116.94,0.055605]
[1644221839456,2.5,116.96,116.94,0.055605]
[1644221840057,2.75,116.96,116.94,0.055605]
[1644221840260,8.75,116.96,116.94,0.055605]
[1644221840460,2.75,116.96,116.94,0.055605]
[1644221840658,15.5832,116.96,116.94,0.055605]
[1644221840859,21.5832,116.96,116.94,0.055605]
[1644221843766,8.5,116.96,116.94,0.055605]
[1644221844468,2.5,116.96,116.94,0.055605]
[1644221845468,2.5,116.96,116.95,3.03219997]
[1644221845872,24.3204,116.99,116.95,3.03219997]
[1644221846068,60.09401113,117.0,116.95,3.03219997]
[1644221846470,22.82126082,117.0,116.95,3.03219997]
[1644221846868,23.07126082,117.0,116.95,3.03219997]
[1644221847768,23.07126082,117.0,116.94,0.055605]
[1644221847969,29.07126082,117.0,116.94,0.055605]
[1644221848769,1.70875158,116.99,116.94,0.055605]
[1644221849169,1.95875158,116.99,116.94,0.055605]
[1644221851175,14.78845158,116.99,116.94,0.055605]
[1644221852777,20.78845158,116.99,116.94,0.055605]
[1644221854496,20.53845158,116.99,116.94,0.055605]
[1644221855496,14.53845158,116.99,116.94,0.055605]
[1644221857299,14.78845158,116.99,116.94,0.055605]
[1644221857497,33.06845158,116.99,116.94,0.055605]
[1644221857897,12.8317,116.97,116.94,0.055605]
[1644221858299,2.5,116.96,116.94,0.055605]
[1644221858698,2.75,116.96,116.94,0.055605]
[1644221859200,2.5,116.96,116.94,0.055605]
[1644221860305,2.75,116.96,116.91,0.1]
[1644221860506,2.75,116.96,116.9,0.1]
[1644221860507,15.5831,116.96,116.9,0.1]
[1644221860705,38.2861,116.96,116.88,0.62066166]
[1644221860902,6.3816109,116.95,116.88,0.62066166]
[1644221861103,10.45054376,116.94,116.87,50.0]
[1644221861300,25.08615466,116.94,116.87,50.0]
[1644221861705,36.08253877,116.92,116.87,50.0]
[1644221862104,48.61253877,116.92,116.87,50.0]
[1644221862303,14.6356109,116.92,116.85,0.44349068]
[1644221862704,12.53,116.92,116.85,0.44349068]
[1644221862907,27.04822844,116.91,116.85,0.44349068]
[1644221863205,27.29822844,116.91,116.83,0.37129755]
[1644221864004,33.29822844,116.91,116.83,0.37129755]
[1644221866506,37.57522844,116.91,116.83,0.37129755]
[1644221870210,12.28,116.9,116.83,0.37129755]
[1644221870410,12.845,116.88,116.83,0.37129755]
[1644221870810,25.375,116.88,116.83,0.37129755]
[1644221871011,1.9314244,116.87,116.83,0.37129755]
[1644221871210,2.1814244,116.87,116.83,0.37129755]
[1644221871414,1.6814244,116.87,116.83,0.37129755]
[1644221871911,12.8464,116.86,116.83,0.37129755]
[1644221872110,12.8464,116.86,116.84,3.56439993]
[1644221875211,12.8416,116.88,116.84,3.56439993]
[1644221875614,13.0916,116.88,116.84,3.56439993]
[1644221877412,2.74788785,116.87,116.84,3.56439993]
[1644221877613,2.5,116.86,116.84,3.56439993]
[1644221878313,13.0916,116.88,116.84,3.56439993]
[1644221879718,4.05829433,116.87,116.84,3.56439993]
[1644221880915,4.05829433,116.87,116.83,0.37129755]
[1644221881716,17.15129433,116.87,116.83,0.37129755]
[1644221883417,16.90129433,116.87,116.83,0.37129755]
[1644221884417,68.0,116.86,116.81,0.2]
[1644221884616,4.279,116.86,116.81,0.2]
[1644221884815,4.279,116.86,116.8,2.0]
[1644221884816,25.1278,116.85,116.8,2.0]
[1644221885221,31.3778,116.85,116.8,2.0]
[1644221885418,10.94851109,116.84,116.8,2.0]
[1644221885618,23.22851109,116.84,116.8,2.0]
[1644221885821,23.47851109,116.84,116.8,2.0]
[1644221886018,12.8493,116.83,116.8,2.0]
[1644221886219,13.0993,116.83,116.8,2.0]
[1644221886421,2.0,116.82,116.8,2.0]
[1644221888223,2.0,116.82,116.81,4.06439994]
[1644221888427,13.0993,116.83,116.81,3.03219997]
[1644221888428,12.8493,116.83,116.81,3.03219997]
[1644221888623,22.2409,116.85,116.81,3.03219997]
[1644221889425,22.2409,116.85,116.8,2.0]
[1644221890427,25.31995253,116.85,116.8,2.0]
[1644221891430,22.2409,116.85,116.8,2.0]
[1644221892231,9.396,116.85,116.8,2.25]
[1644221892534,9.396,116.85,116.81,47.56857619]
[1644221892746,9.396,116.85,116.82,0.2]
[1644221892937,9.396,116.85,116.83,4.06439994]
[1644221893934,2.0,116.84,116.83,4.06439994]
[1644221894135,9.396,116.85,116.83,4.06439994]
[1644221895654,9.396,116.85,116.8,2.0]
[1644221896253,12.844,116.86,116.8,2.0]
[1644221896453,11.84435148,116.85,116.8,2.0]
[1644221896853,13.094,116.86,116.8,2.0]
[1644221898456,4.26170569,116.85,116.8,2.0]
[1644221898958,17.10700569,116.85,116.8,2.0]
[1644221901758,17.35700569,116.85,116.8,2.0]
[1644221903061,23.35700569,116.85,116.8,2.0]
[1644221903865,17.10700569,116.85,116.8,2.0]
[1644221905163,17.35700569,116.85,116.8,2.0]
[1644221905364,13.0953,116.85,116.8,2.0]
[1644221906065,12.8453,116.85,116.8,2.0]
[1644221910472,12.8453,116.85,116.8,45.56785435]
[1644221910674,26.06672705,116.87,116.81,0.2]
[1644221910872,21.78772705,116.87,116.81,0.2]
[1644221911171,28.03772705,116.87,116.81,0.2]
[1644221911573,40.45799513,116.87,116.81,0.2]
[1644221911773,28.03772705,116.87,116.81,0.2]
[1644221912470,27.78772705,116.87,116.81,0.2]
[1644221914176,27.78772705,116.87,116.8,2.25]
[1644221914975,27.78772705,116.87,116.8,2.45]
[1644221915173,27.78772705,116.87,116.8,2.2]
[1644221915371,28.03772705,116.87,116.8,24.9131]
[1644221915576,28.03772705,116.87,116.81,0.2]
[1644221915772,27.78772705,116.87,116.81,0.2]
[1644221917174,27.78772705,116.87,116.81,38.83147864]
[1644221917373,27.78772705,116.87,116.82,0.2]
[1644221917775,27.78772705,116.87,116.81,0.2]
[1644221918577,14.94512705,116.87,116.81,0.2]
[1644221919381,14.94512705,116.87,116.81,36.59943443]
[1644221919580,14.94512705,116.87,116.82,0.2]
[1644221919781,14.94512705,116.87,116.81,0.2]
[1644221920582,14.94512705,116.87,116.81,46.25792963]
[1644221920781,14.94512705,116.87,116.82,0.2]
[1644221921800,14.94512705,116.87,116.81,0.45]
[1644221922200,14.94512705,116.87,116.81,0.2]
[1644221922600,6.0,116.87,116.81,41.58419086]
[1644221922800,6.0,116.87,116.82,0.2]
[1644221923000,17.1193,116.89,116.82,0.2]
[1644221923202,4.277,116.9,116.82,24.5938]
[1644221923501,12.8382,116.91,116.83,0.2]
[1644221923701,16.557,116.93,116.83,0.2]
[1644221923901,12.28,116.93,116.83,0.2]
[1644221924102,31.01595616,116.92,116.83,0.2]
[1644221924301,47.57295616,116.92,116.83,0.2]
[1644221924605,16.33397023,116.91,116.83,0.2]
[1644221925503,16.58397023,116.91,116.83,0.2]
[1644221925903,17.1166,116.9,116.83,0.2]
[1644221926103,33.45057023,116.9,116.83,0.2]
[1644221926404,17.3666,116.9,116.83,0.2]
[1644221926603,13.0896,116.9,116.83,0.2]
[1644221927903,19.0896,116.9,116.83,0.2]
[1644221928104,28.61682782,116.89,116.83,0.2]
[1644221928504,29.17842782,116.88,116.83,0.2]